[Event "Asian Continental-ch Women 2019"]
[Site "XingTai"]
[Date "2019.06.10"]
[Round "4.23"]
[White "Vo, Thi Kim Phung"]
[Black "Pham, Le Thao Nguyen"]
[Result "1/2-1/2"]
[ECO "E11"]
[WhiteElo "2337"]
[BlackElo "2370"]
[Annotator "NA"]
[PlyCount "30"]
[EventDate "2019.06.06"]
[EventType "swiss"]
[EventCountry "CHN"]
[SourceTitle "playchess.com"]
[Source "ChessBase"]
[SourceQuality "1"]
[TimeControl "40/5400+30:1800+30"]

1. d4 {[%emt 0:00:00]} Nf6 {[%emt 0:00:00]} 2. Nf3 {[%emt 0:00:00]} e6 {[%emt 0:00:05]} 3. c4 {[%emt 0:00:04]} Bb4+ {[%emt 0:00:25]} 4. Bd2 {[%emt 0:00:12]} Qe7 {[%emt 0:00:46]} 5. e3 {[%emt 0:01:05]} b6 {[%emt 0:01:22]} 6. Bd3 {[%emt 0:01:44]} Bb7 {[%emt 0:02:01]} 7. O-O {[%emt 0:00:23]} O-O {[%emt 0:02:07]} 8. Nc3 {[%emt 0:01:08]} d6 {[%emt 0:03:50]} 9. Qc2 {[%emt 0:07:17]} Nbd7 {[%emt 0:12:24]} 10. Rfe1 {[%emt 0:06:25]} c5 {[%emt 0:08:22]} 11. a3 {[%emt 0:04:53]} Bxc3 {[%emt 0:01:00]} 12. Bxc3 {[%emt 0:00:26]} e5 {[%emt 0:01:55]} 13. dxe5 {[%emt 0:03:56]} dxe5 {[%emt 0:00:42]} 14. e4 {[%emt 0:02:06]} Ne8 {[%emt 0:04:41]} 15. Rad1 {[%emt 0:04:03]} Nc7 {[%emt 0:02:41]} 1/2-1/2

[Event "Asian Continental-ch Women 2019"]
[Site "XingTai"]
[Date "2019.06.10"]
[Round "4.24"]
[White "Ren, Xiaoyi"]
[Black "Vaishali R"]
[Result "1/2-1/2"]
[ECO "E11"]
[WhiteElo "2255"]
[BlackElo "2338"]
[Annotator "NA"]
[PlyCount "168"]
[EventDate "2019.06.06"]
[EventType "swiss"]
[EventCountry "CHN"]
[SourceTitle "playchess.com"]
[Source "ChessBase"]
[SourceQuality "1"]
[TimeControl "40/5400+30:1800+30"]

1. d4 {[%emt 0:00:00]} Nf6 {[%emt 0:00:00]} 2. c4 {[%emt 0:00:00]} e6 {[%emt 0:00:00]} 3. Nf3 {[%emt 0:00:00]} Bb4+ {[%emt 0:00:03]} 4. Bd2 {[%emt 0:00:15]} Qe7 {[%emt 0:00:05]} 5. a3 {[%emt 0:00:35]} Bxd2+ {[%emt 0:00:07]} 6. Nbxd2 {[%emt 0:00:09]} d6 {[%emt 0:00:44]} 7. e4 {[%emt 0:02:45]} e5 {[%emt 0:00:44]} 8. d5 {[%emt 0:03:49]} a5 {[%emt 0:03:43]} 9. b4 {[%emt 0:05:16]} O-O {[%emt 0:03:30]} 10. g3 {[%emt 0:04:47]} axb4 {[%emt 0:07:49]} 11. axb4 {[%emt 0:00:07]} Rxa1 {[%emt 0:00:08]} 12. Qxa1 {[%emt 0:00:04]} Na6 {[%emt 0:00:28]} 13. Qc3 {[%emt 0:01:35]} Qe8 {[%emt 0:10:32]} 14. Bd3 {[%emt 0:19:11]} Qa4 {[%emt 0:21:36]} 15. b5 {[%emt 0:01:58]} Qb4 {[%emt 0:01:24]} 16. Qxb4 {[%emt 0:05:42]} Nxb4 {[%emt 0:00:03]} 17. Bb1 {[%emt 0:02:17]} Bg4 {[%emt 0:08:02]} 18. h3 {[%emt 0:01:45]} Bxf3 {[%emt 0:00:59]} 19. Nxf3 {[%emt 0:00:09]} Ra8 {[%emt 0:00:28]} 20. Kd2 {[%emt 0:09:42]} Nd7 {[%emt 0:39:35]} 21. Nh4 {[%emt 0:11:32]} Nc5 {[%emt 0:00:00]} 22. f4 {[%emt 0:00:48]} Ra3 {[%emt 0:00:00]} 23. b6 {[%emt 0:00:37]} cxb6 {[%emt 0:00:00]} 24. Nf5 {[%emt 0:00:16]} f6 {[%emt 0:00:00]} 25. Rg1 {[%emt 0:07:17]} Rb3 {[%emt 0:00:00]} 26. Nxd6 {[%emt 0:01:13]} Rb2+ {[%emt 0:00:00]} 27. Ke3 {[%emt 0:00:14]} Nb3 {[%emt 0:00:00]} 28. fxe5 {[%emt 0:07:47]} fxe5 {[%emt 0:00:00]} 29. Nb5 {[%emt 0:06:54]} Kf8 {[%emt 0:00:00]} 30. Rd1 {[%emt 0:01:18]} Ke7 {[%emt 0:00:00]} 31. Bd3 {[%emt 0:03:26]} Nc5 {[%emt 0:00:00]} 32. Bb1 {[%emt 0:00:12]} Nc2+ {[%emt 0:02:53]} 33. Bxc2 {[%emt 0:01:07]} Rxc2 {[%emt 0:00:01]} 34. d6+ {[%emt 0:04:13]} Kd7 {[%emt 0:00:20]} 35. Rd5 {[%emt 0:00:00]} Rxc4 {[%emt 0:01:20]} 36. Rxe5 {[%emt 0:00:00]} Kc6 {[%emt 0:00:41]} 37. g4 {[%emt 0:00:55]} Rb4 {[%emt 0:02:00]} 38. Nd4+ {[%emt 0:00:23]} Kxd6 {[%emt 0:00:15]} 39. Rd5+ {[%emt 0:00:04]} Ke7 {[%emt 0:01:14]} 40. Nf5+ {[%emt 0:00:00]} Kf7 {[%emt 0:00:00]} 41. Nd4 {[%emt 0:03:22]} g6 {[%emt 0:08:24]} 42. h4 {[%emt 0:02:40]} Rb1 {[%emt 0:02:22]} 43. Nf3 {[%emt 0:00:41]} Rb3+ {[%emt 0:01:33]} 44. Kf4 {[%emt 0:00:20]} Ne6+ {[%emt 0:02:50]} 45. Ke5 {[%emt 0:01:30]} Ke7 {[%emt 0:01:26]} 46. Nd4 {[%emt 0:03:47]} Nxd4 {[%emt 0:00:23]} 47. Rxd4 {[%emt 0:00:10]} Rb5+ {[%emt 0:01:40]} 48. Kf4 {[%emt 0:00:11]} Rc5 {[%emt 0:01:07]} 49. Ra4 {[%emt 0:01:04]} Kd6 {[%emt 0:02:28]} 50. Rd4+ {[%emt 0:00:46]} Ke6 {[%emt 0:00:32]} 51. Ra4 {[%emt 0:00:34]} Rc6 {[%emt 0:05:36]} 52. Rb4 {[%emt 0:01:34]} Kd6 {[%emt 0:00:48]} 53. Rb5 {[%emt 0:00:11]} Kc7 {[%emt 0:01:57]} 54. Rb4 {[%emt 0:05:25]} Rc5 {[%emt 0:00:35]} 55. Rd4 {[%emt 0:01:14]} b5 {[%emt 0:00:27]} 56. Rd3 {[%emt 0:00:05]} Kc6 {[%emt 0:03:36]} 57. e5 {[%emt 0:00:43]} Rd5 {[%emt 0:00:15]} 58. Re3 {[%emt 0:01:09]} Kd7 {[%emt 0:00:39]} 59. Kg5 {[%emt 0:02:40]} Ke6 {[%emt 0:00:08]} 60. Kh6 {[%emt 0:00:03]} Rd4 {[%emt 0:00:50]} 61. Rg3 {[%emt 0:00:49]} Rd7 {[%emt 0:02:22]} 62. Rb3 {[%emt 0:01:25]} Kxe5 {[%emt 0:00:11]} 63. Rxb5+ {[%emt 0:00:02]} Kd4 {[%emt 0:00:58]} 64. Rb1 {[%emt 0:00:34]} Kc3 {[%emt 0:01:19]} 65. Rb6 {[%emt 0:00:10]} Kc4 {[%emt 0:00:06]} 66. Rb1 {[%emt 0:00:05]} b5 {[%emt 0:00:17]} 67. Rc1+ {[%emt 0:00:14]} Kb4 {[%emt 0:00:11]} 68. h5 {[%emt 0:01:07]} gxh5 {[%emt 0:00:32]} 69. gxh5 {[%emt 0:00:04]} Ka3 {[%emt 0:00:16]} 70. Ra1+ {[%emt 0:00:54]} Kb2 {[%emt 0:00:14]} 71. Rg1 {[%emt 0:00:20]} b4 {[%emt 0:00:09]} 72. Rg7 {[%emt 0:00:14]} Rd5 {[%emt 0:02:06]} 73. Rxh7 {[%emt 0:00:18]} Rb5 {[%emt 0:00:48]} 74. Rf7 {[%emt 0:00:11]} b3 {[%emt 0:00:06]} 75. Rf3 {[%emt 0:00:19]} Kc2 {[%emt 0:00:16]} 76. Kg6 {[%emt 0:00:38]} b2 {[%emt 0:00:19]} 77. Rf2+ {[%emt 0:00:06]} Kd3 {[%emt 0:00:05]} 78. Rxb2 {[%emt 0:00:06]} Rxb2 {[%emt 0:00:02]} 79. h6 {[%emt 0:00:03]} Rg2+ {[%emt 0:00:52]} 80. Kf7 {[%emt 0:00:30]} Rh2 {[%emt 0:00:04]} 81. Kg7 {[%emt 0:00:04]} Ke4 {[%emt 0:00:05]} 82. h7 {[%emt 0:00:06]} Rg2+ {[%emt 0:00:04]} 83. Kf7 {[%emt 0:00:14]} Rh2 {[%emt 0:00:03]} 84. Kg7 {[%emt 0:16:56]} Ke5 {[%emt 0:04:15]} 1/2-1/2

[Event "Asian Continental-ch Women 2019"]
[Site "XingTai"]
[Date "2019.06.10"]
[Round "4.25"]
[White "Mahalakshmi, M."]
[Black "Li, Yunshan"]
[Result "1/2-1/2"]
[ECO "D17"]
[WhiteElo "2245"]
[BlackElo "2264"]
[Annotator "NA"]
[PlyCount "68"]
[EventDate "2019.06.06"]
[EventType "swiss"]
[EventCountry "CHN"]
[SourceTitle "playchess.com"]
[Source "ChessBase"]
[SourceQuality "1"]
[TimeControl "40/5400+30:1800+30"]

1. d4 {[%emt 0:00:00]} d5 {[%emt 0:00:00]} 2. c4 {[%emt 0:00:00]} c6 {[%emt 0:00:00]} 3. Nf3 {[%emt 0:00:00]} Nf6 {[%emt 0:00:00]} 4. Nc3 {[%emt 0:00:03]} dxc4 {[%emt 0:00:08]} 5. a4 {[%emt 0:00:07]} Bf5 {[%emt 0:00:17]} 6. Ne5 {[%emt 0:00:15]} Nbd7 {[%emt 0:00:17]} 7. Nxc4 {[%emt 0:00:22]} Nb6 {[%emt 0:00:13]} 8. Ne5 {[%emt 0:00:22]} a5 {[%emt 0:00:25]} 9. f3 {[%emt 0:00:43]} Nfd7 {[%emt 0:00:49]} 10. Nxd7 {[%emt 0:00:56]} Bxd7 {[%emt 0:09:10]} 11. e4 {[%emt 0:06:08]} e6 {[%emt 0:00:44]} 12. Be2 {[%emt 0:03:19]} Bd6 {[%emt 0:07:04]} 13. O-O {[%emt 0:08:06]} O-O {[%emt 0:00:56]} 14. e5 {[%emt 0:04:43]} Be7 {[%emt 0:02:59]} 15. Be3 {[%emt 0:01:33]} Nd5 {[%emt 0:12:18]} 16. Nxd5 {[%emt 0:02:51]} cxd5 {[%emt 0:00:05]} 17. Qb3 {[%emt 0:01:17]} Rb8 {[%emt 0:00:39]} 18. f4 {[%emt 0:03:13]} b5 {[%emt 0:12:02]} 19. axb5 {[%emt 0:06:05]} Bxb5 {[%emt 0:02:00]} 20. Bxb5 {[%emt 0:05:14]} Qb6 {[%emt 0:00:05]} 21. Qc3 {[%emt 0:02:14]} Qxb5 {[%emt 0:00:09]} 22. Rxa5 {[%emt 0:00:59]} Qxb2 {[%emt 0:11:50]} 23. Qxb2 {[%emt 0:00:52]} Rxb2 {[%emt 0:00:03]} 24. Ra7 {[%emt 0:02:36]} Bd8 {[%emt 0:03:24]} 25. f5 {[%emt 0:12:22]} Bb6 {[%emt 0:03:49]} 26. Re7 {[%emt 0:01:42]} exf5 {[%emt 0:02:11]} 27. Rxf5 {[%emt 0:01:16]} Re2 {[%emt 0:01:25]} 28. Rb7 {[%emt 0:01:21]} Rxe3 {[%emt 0:04:30]} 29. Rxb6 {[%emt 0:02:37]} Re4 {[%emt 0:01:26]} 30. Rb4 {[%emt 0:01:20]} h6 {[%emt 0:02:59]} 31. h3 {[%emt 0:01:32]} Re8 {[%emt 0:01:21]} 32. Rb7 {[%emt 0:01:20]} Rf8 {[%emt 0:00:40]} 33. Rb4 {[%emt 0:00:22]} Re8 {[%emt 0:11:24]} 34. Rb7 {[%emt 0:01:03]} Rf8 {[%emt 0:00:08]} 1/2-1/2

[Event "Asian Continental-ch Women 2019"]
[Site "XingTai"]
[Date "2019.06.11"]
[Round "5.18"]
[White "Saduakassova, Dinara"]
[Black "Sukandar, Irine Kharisma"]
[Result "1/2-1/2"]
[ECO "E05"]
[WhiteElo "2458"]
[BlackElo "2378"]
[Annotator "RC"]
[PlyCount "189"]
[EventDate "2019.06.06"]
[EventType "swiss"]
[EventCountry "CHN"]
[SourceTitle "playchess.com"]
[Source "ChessBase"]
[SourceQuality "1"]
[TimeControl "40/5400+30:1800+30"]

1. d4 {[%emt 0:00:00]} Nf6 {[%emt 0:00:00]} 2. c4 {[%emt 0:00:00]} e6 {[%emt 0:00:09]} 3. g3 {[%emt 0:00:13]} d5 {[%emt 0:01:05]} 4. Nf3 {[%emt 0:00:14]} Be7 {[%emt 0:00:45]} 5. Bg2 {[%emt 0:00:06]} O-O {[%emt 0:00:17]} 6. O-O {[%emt 0:00:04]} dxc4 {[%emt 0:00:23]} 7. Qc2 {[%emt 0:00:24]} b6 {[%emt 0:00:17]} 8. Bg5 {[%emt 0:01:33]} Nd5 {[%emt 0:00:27]} 9. Bxe7 {[%emt 0:01:25]} Qxe7 {[%emt 0:00:05]} 10. Nbd2 {[%emt 0:04:28]} b5 {[%emt 0:00:25]} 11. b3 {[%emt 0:03:23]} c3 {[%emt 0:00:48]} 12. Nb1 {[%emt 0:06:18]} b4 {[%emt 0:06:06]} 13. a3 {[%emt 0:00:46]} Nc6 {[%emt 0:16:32]} 14. axb4 {[%emt 0:09:19]} Ncxb4 {[%emt 0:00:56]} 15. Qc1 {[%emt 0:00:12]} Ba6 {[%emt 0:10:26]} 16. Re1 {[%emt 0:06:14]} c2 {[%emt 0:06:26]} 17. Na3 {[%emt 0:00:07]} Nc3 {[%emt 0:08:00]} 18. Qd2 {[%emt 0:00:26]} c1=Q {[%emt 0:04:14]} 19. Raxc1 {[%emt 0:00:11]} Nba2 {[%emt 0:00:13]} 20. Ra1 {[%emt 0:02:50]} Qxa3 {[%emt 0:03:22]} 21. Qxc3 {[%emt 0:00:10]} Nxc3 {[%emt 0:00:13]} 22. Rxa3 {[%emt 0:00:03]} Bb7 {[%emt 0:06:08]} 23. Ne5 {[%emt 0:03:47]} Bxg2 {[%emt 0:00:28]} 24. Kxg2 {[%emt 0:00:11]} Rfb8 {[%emt 0:00:38]} 25. e3 {[%emt 0:03:28]} Nb5 {[%emt 0:03:37]} 26. Ra6 {[%emt 0:03:18]} Rb6 {[%emt 0:07:06]} 27. Rea1 {[%emt 0:02:37]} Rxa6 {[%emt 0:04:37]} 28. Rxa6 {[%emt 0:00:16]} Rb8 {[%emt 0:00:29]} 29. Nd7 {[%emt 0:01:24]} Rd8 {[%emt 0:04:46]} 30. Nc5 {[%emt 0:03:04]} h6 {[%emt 0:01:18]} 31. f4 {[%emt 0:06:24]} Rd6 {[%emt 0:02:47]} 32. Ra5 {[%emt 0:00:29]} Rb6 {[%emt 0:00:07]} 33. Kf3 {[%emt 0:01:08]} g6 {[%emt 0:03:10]} 34. Nd7 {[%emt 0:03:36]} Rb7 {[%emt 0:00:18]} 35. g4 {[%emt 0:02:57]} Kg7 {[%emt 0:01:01]} 36. Nc5 {[%emt 0:02:54]} Rb6 {[%emt 0:00:07]} 37. h4 {[%emt 0:02:21]} Rb8 {[%emt 0:02:21]} 38. h5 {[%emt 0:04:56]} Rb6 {[%emt 0:04:57]} 39. Nd7 {[%emt 0:03:14]} Rb7 {[%emt 0:00:20]} 40. Ra6 {[%emt 0:00:00]} gxh5 {[%emt 0:00:00]} 41. gxh5 {[%emt 0:02:00]} Kh7 {[%emt 0:10:24]} 42. Ra1 {[%emt 0:07:04]} Kh8 {[%emt 0:00:51]} 43. Nc5 {[%emt 0:02:58]} Rb6 {[%emt 0:00:34]} 44. Ke4 {[%emt 0:02:52]} Rd6 {[%emt 0:01:39]} 45. Ra5 {[%emt 0:01:48]} c6 {[%emt 0:01:14]} 46. Kf3 {[%emt 0:06:07]} Rd5 {[%emt 0:02:46]} 47. Kg4 {[%emt 0:02:22]} Kg7 {[%emt 0:00:26]} 48. Ra6 {[%emt 0:01:05]} Rd6 {[%emt 0:00:13]} 49. Nb7 {[%emt 0:04:30]} Rd7 {[%emt 0:00:55]} 50. Nc5 {[%emt 0:01:10]} Rd6 {[%emt 0:00:22]} 51. Nd3 {[%emt 0:01:12]} Kf8 {[%emt 0:06:41]} 52. Ne5 {[%emt 0:00:59]} Ke7 {[%emt 0:06:17]} 53. Rxc6 {[%emt 0:02:44]} Rd8 {[%emt 0:03:03]} 54. Ra6 {[%emt 0:05:30]} Rg8+ {[%emt 0:00:52]} 55. Kf3 {[%emt 0:00:05]} Rg1 {[%emt 0:00:38]} 56. Ra5 {[%emt 0:00:41]} a6 {[%emt 0:00:20]} 57. Rxa6 {[%emt 0:00:06]} Rb1 {[%emt 0:00:23]} 58. Nc6+ {[%emt 0:05:39]} Kf6 {[%emt 0:00:15]} 59. b4 {[%emt 0:02:36]} Rb3 {[%emt 0:00:27]} 60. Ra5 {[%emt 0:02:17]} Nd6 {[%emt 0:02:11]} 61. Ra7 {[%emt 0:01:27]} Kg7 {[%emt 0:03:06]} 62. Kf2 {[%emt 0:04:52]} Ne4+ {[%emt 0:00:22]} 63. Ke2 {[%emt 0:00:08]} Nc3+ {[%emt 0:01:05]} 64. Kd2 {[%emt 0:01:33]} Ne4+ {[%emt 0:00:11]} 65. Ke2 {[%emt 0:00:45]} Nc3+ {[%emt 0:00:05]} 66. Kf1 {[%emt 0:03:40]} Nd5 {[%emt 0:00:27]} 67. e4 {[%emt 0:01:06]} Nxf4 {[%emt 0:00:16]} 68. Ne5 {[%emt 0:00:16]} Rb1+ {[%emt 0:00:42]} 69. Kf2 {[%emt 0:00:07]} Nh3+ {[%emt 0:00:07]} 70. Ke3 {[%emt 0:00:40]} Rb3+ {[%emt 0:01:08]} 71. Ke2 {[%emt 0:00:33]} Ng5 {[%emt 0:00:39]} 72. Rb7 {[%emt 0:00:17]} Kg8 {[%emt 0:00:59]} 73. b5 {[%emt 0:00:56]} Nxe4 {[%emt 0:00:12]} 74. Nxf7 {[%emt 0:00:43]} Rxb5 {[%emt 0:00:47]} 75. Nxh6+ {[%emt 0:00:44]} Kf8 {[%emt 0:00:26]} 76. Rxb5 {[%emt 0:00:44]} Nc3+ {[%emt 0:00:01]} 77. Ke3 {[%emt 0:00:16]} Nxb5 {[%emt 0:00:04]} 78. Ke4 {[%emt 0:00:20]} Kg7 {[%emt 0:00:14]} 79. Ng4 {[%emt 0:00:04]} Nc3+ {[%emt 0:00:57]} 80. Ke5 {[%emt 0:00:05]} Ne2 {[%emt 0:00:33]} 81. h6+ {[%emt 0:01:28]} Kg6 {[%emt 0:00:47]} 82. Ke4 {[%emt 0:00:10]} Ng3+ {[%emt 0:00:51]} 83. Kf4 {[%emt 0:00:10]} Ne2+ {[%emt 0:00:26]} 84. Ke5 {[%emt 0:00:03]} Kh7 {[%emt 0:00:22]} 85. Ke4 {[%emt 0:00:18]} Kg6 {[%emt 0:00:23]} 86. Kd3 {[%emt 0:00:23]} Ng3 {[%emt 0:00:30]} 87. Ke3 {[%emt 0:00:14]} Nf5+ {[%emt 0:00:34]} 88. Ke4 {[%emt 0:00:03]} Ng3+ {[%emt 0:00:11]} 89. Kf4 {[%emt 0:00:20]} Ne2+ {[%emt 0:00:14]} 90. Ke5 {[%emt 0:00:03]} Kh7 {[%emt 0:00:10]} 91. Kxe6 {[%emt 0:00:48]} Nxd4+ {[%emt 0:00:12]} 92. Kf6 {[%emt 0:00:04]} Nf3 {[%emt 0:00:24]} 93. Ne5 {[%emt 0:00:03]} Nxe5 {[%emt 0:00:05]} 94. Kxe5 {[%emt 0:00:02]} Kxh6 {[%emt 0:00:01]} 95. Ke4 {[%emt 0:05:50]} 1/2-1/2

[Event "Asian Continental-ch Women 2019"]
[Site "XingTai"]
[Date "2019.06.11"]
[Round "5.20"]
[White "Pham, Le Thao Nguyen"]
[Black "Li, Xueyi"]
[Result "0-1"]
[ECO "D11"]
[WhiteElo "2370"]
[BlackElo "2305"]
[Annotator "NA RC"]
[PlyCount "138"]
[EventDate "2019.06.06"]
[EventType "swiss"]
[EventCountry "CHN"]
[SourceTitle "playchess.com"]
[Source "ChessBase"]
[SourceQuality "1"]
[TimeControl "40/5400+30:1800+30"]

1. d4 {[%emt 0:00:00]} d5 {[%emt 0:00:00]} 2. Nf3 {[%emt 0:00:00]} Nf6 {[%emt 0:00:11]} 3. g3 {[%emt 0:00:40]} Bf5 {[%emt 0:02:03]} 4. Bg2 {[%emt 0:00:33]} e6 {[%emt 0:04:32]} 5. O-O {[%emt 0:01:00]} h6 {[%emt 0:01:32]} 6. c4 {[%emt 0:02:34]} c6 {[%emt 0:00:17]} 7. Qb3 {[%emt 0:01:49]} Qb6 {[%emt 0:00:56]} 8. c5 {[%emt 0:01:13]} Qa6 {[%emt 0:01:02] D11: Slav Defence: 3 Nf3 sidelines and 3...Nf6 4 e3 Bg4} 9. Re1 {[%emt 0:01:19]} b6 {[%emt 0:01:38]} 10. cxb6 {[%emt 0:04:28]} axb6 {[%emt 0:00:19]} 11. Nc3 {[%emt 0:00:51]} Be7 {[%emt 0:04:17]} 12. Ne5 {[%emt 0:08:42]} O-O $146 {[%emt 0:06:55]} ({Predecessor:} 12... Bh7 13. e4 Ra7 14. exd5 exd5 15. Nxc6 Nxc6 16. Nxd5 Nxd5 17. Qxd5 {½-½ (47) Stefanova,A (2365)-Skomorokhin,R (2450) Groningen 1996}) 13. Bf4 {[%emt 0:02:57]} c5 {[%emt 0:16:28]} 14. dxc5 {[%emt 0:06:45]} bxc5 {[%emt 0:03:43]} 15. e4 {[%emt 0:01:25]} Nxe4 {[%emt 0:01:22] [#]} (15... dxe4 $11 16. f3 (16. Bxe4 Nxe4 17. Nxe4 f6 $17) 16... Nbd7 17. Nxd7 Nxd7) 16. Nxe4 {[%emt 0:00:36]} ({And not} 16. Bxe4 dxe4 17. g4 Bh7 $17) (16. Nxd5 $1 $16 {[%mdl 512]} exd5 17. Qxd5) 16... Bxe4 {[%emt 0:00:41]} 17. Bxe4 {[%emt 0:02:59]} dxe4 {[%emt 0:01:45]} 18. Rxe4 {[%emt 0:00:40]} Nc6 {[%emt 0:03:47]} 19. Nxc6 {[%emt 0:03:47]} Qxc6 {[%emt 0:00:06]} 20. Rae1 {[%emt 0:00:45]} Bf6 {[%emt 0:02:48]} 21. a3 {[%emt 0:08:59]} Qd5 {[%emt 0:04:13]} 22. Qc2 {[%emt 0:01:14]} Bd4 {[%emt 0:08:55]} 23. Be5 {[%emt 0:03:23]} Rfd8 {[%emt 0:01:21]} 24. Qe2 {[%emt 0:08:47]} Ra7 {[%emt 0:02:44]} 25. Rg4 {[%emt 0:08:18]} Bxe5 {[%emt 0:10:19]} 26. Qxe5 {[%emt 0:03:28]} Qxe5 {[%emt 0:00:07]} 27. Rxe5 {[%emt 0:00:08]} Rd1+ {[%emt 0:00:02]} 28. Kg2 {[%emt 0:00:21]} Rd2 {[%emt 0:00:10]} 29. Rxc5 {[%emt 0:01:12]} Rxb2 {[%emt 0:00:15]} 30. a4 {[%emt 0:00:18]} Ra2 {[%emt 0:00:58]} 31. Rcc4 $15 {[%emt 0:01:14]} e5 {[%emt 0:01:06]} 32. Rge4 {[%emt 0:02:57]} f6 {[%emt 0:00:39]} 33. h4 {[%emt 0:08:55]} Rd7 {[%emt 0:00:29]} 34. Re3 {[%emt 0:00:54]} Rdd2 {[%emt 0:00:10]} 35. Rf3 {[%emt 0:00:16]} Re2 {[%emt 0:00:18]} 36. Rc8+ {[%emt 0:00:55]} Kf7 {[%emt 0:06:47]} 37. Rc7+ {[%emt 0:00:15]} Ke6 {[%emt 0:01:01]} 38. Rxg7 {[%emt 0:05:26]} e4 {[%emt 0:00:08]} 39. Rf4 {[%emt 0:00:26]} e3 {[%emt 0:00:39]} 40. g4 {[%emt 0:00:00]} Rxf2+ {[%emt 0:00:00]} 41. Rxf2 {[%emt 0:11:28]} Rxf2+ {[%emt 0:00:49]} 42. Kg1 {[%emt 0:00:43]} Ra2 {[%emt 0:00:27]} 43. Kf1 {[%emt 0:01:41]} Ke5 {[%emt 0:03:04]} 44. Rg6 {[%emt 0:01:36]} Rf2+ {[%emt 0:03:28]} 45. Ke1 {[%emt 0:01:20]} Ke4 {[%emt 0:12:59]} 46. Rxh6 {[%emt 0:04:19]} f5 {[%emt 0:01:52]} 47. gxf5 {[%emt 0:07:52]} Kf3 {[%emt 0:00:09]} 48. Re6 {[%emt 0:00:45]} Ra2 {[%emt 0:00:39]} 49. Kd1 {[%emt 0:00:17]} e2+ {[%emt 0:02:12]} 50. Ke1 {[%emt 0:03:00]} Ra1+ {[%emt 0:00:06]} 51. Kd2 {[%emt 0:00:04]} Rd1+ {[%emt 0:00:18]} 52. Kc3 {[%emt 0:00:16]} e1=Q+ {[%emt 0:01:07]} 53. Rxe1 {[%emt 0:00:04]} Rxe1 {[%emt 0:00:05]} 54. Kd4 {[%emt 0:00:41]} Kg4 {[%emt 0:09:37]} 55. f6 {[%emt 0:01:38]} Rf1 {[%emt 0:00:51]} 56. a5 {[%emt 0:01:01]} Kf5 {[%emt 0:01:27]} 57. a6 {[%emt 0:04:05]} Kxf6 {[%emt 0:00:48]} 58. Kc5 {[%emt 0:00:04]} Ke7 {[%emt 0:00:07]} 59. Kc6 {[%emt 0:01:13]} Ra1 {[%emt 0:00:45]} 60. Kb7 {[%emt 0:00:21]} Kd7 {[%emt 0:00:26]} 61. a7 {[%emt 0:03:52]} Rb1+ {[%emt 0:00:06]} 62. Ka6 {[%emt 0:00:04]} Kc7 {[%emt 0:00:09]} 63. a8=N+ {[%emt 0:00:07]} Kc6 {[%emt 0:00:06]} 64. Ka7 {[%emt 0:00:03]} Rb7+ {[%emt 0:00:24]} 65. Ka6 {[%emt 0:00:03]} Rb4 {[%emt 0:00:19]} 66. Ka7 {[%emt 0:00:35]} Ra4+ {[%emt 0:00:07]} 67. Kb8 {[%emt 0:00:03]} Rxh4 {[%emt 0:00:05]} 68. Ka7 {[%emt 0:06:16]} Rh7+ {[%emt 0:00:42]} 69. Kb8 {[%emt 0:00:00]} Rg7 {[%emt 0:00:11]} 0-1

[Event "Asian Continental-ch Women 2019"]
[Site "XingTai"]
[Date "2019.06.11"]
[Round "5.22"]
[White "Zhai, Mo"]
[Black "Mahalakshmi, M."]
[Result "1/2-1/2"]
[ECO "E11"]
[WhiteElo "2358"]
[BlackElo "2245"]
[Annotator "RC"]
[PlyCount "76"]
[EventDate "2019.06.06"]
[EventType "swiss"]
[EventCountry "CHN"]
[SourceTitle "playchess.com"]
[Source "ChessBase"]
[SourceQuality "1"]
[TimeControl "40/5400+30:1800+30"]

1. d4 {[%emt 0:00:00]} Nf6 {[%emt 0:00:00]} 2. c4 {[%emt 0:00:00]} e6 {[%emt 0:00:00]} 3. Nf3 {[%emt 0:00:00]} Bb4+ {[%emt 0:00:18]} 4. Bd2 {[%emt 0:00:00]} a5 {[%emt 0:00:05]} 5. g3 {[%emt 0:00:11]} d6 {[%emt 0:00:53]} 6. Bg2 {[%emt 0:00:51]} Nbd7 {[%emt 0:00:09]} 7. O-O {[%emt 0:01:47]} e5 {[%emt 0:01:07]} 8. e3 {[%emt 0:04:53]} c6 {[%emt 0:01:12]} 9. Bc1 {[%emt 0:05:05]} e4 {[%emt 0:01:42]} 10. Ng5 {[%emt 0:03:25]} d5 {[%emt 0:00:14]} 11. c5 {[%emt 0:00:19]} h6 {[%emt 0:01:13]} 12. Nh3 {[%emt 0:00:20]} a4 {[%emt 0:00:19]} 13. a3 {[%emt 0:00:12]} Ba5 {[%emt 0:00:07]} 14. Qxa4 {[%emt 0:00:08]} Nf8 {[%emt 0:00:17]} 15. b4 {[%emt 0:09:40]} Bxh3 {[%emt 0:00:18]} 16. Bxh3 {[%emt 0:00:10]} Bc7 {[%emt 0:00:12]} 17. Qd1 {[%emt 0:00:33]} h5 {[%emt 0:01:21]} 18. f4 {[%emt 0:08:54]} exf3 {[%emt 0:05:00]} 19. Qxf3 {[%emt 0:00:50]} h4 {[%emt 0:07:20]} 20. Bf5 {[%emt 0:12:12]} hxg3 {[%emt 0:05:16]} 21. hxg3 {[%emt 0:00:08]} Ne6 {[%emt 0:09:26]} 22. Bxe6 {[%emt 0:07:17]} fxe6 {[%emt 0:00:08]} 23. Ra2 {[%emt 0:00:07]} Rh3 {[%emt 0:05:39]} 24. Rh2 {[%emt 0:05:49]} Rxg3+ {[%emt 0:04:43]} 25. Qxg3 {[%emt 0:00:05]} Bxg3 {[%emt 0:00:05]} 26. Rh8+ {[%emt 0:00:03]} Kd7 {[%emt 0:02:06]} 27. Rxd8+ {[%emt 0:00:06]} Rxd8 {[%emt 0:00:08]} 28. Nc3 {[%emt 0:06:28]} Rh8 {[%emt 0:03:14]} 29. e4 {[%emt 0:07:43]} dxe4 {[%emt 0:10:31]} 30. Bg5 {[%emt 0:00:09]} Bh4 {[%emt 0:03:34]} 31. Bxf6 {[%emt 0:00:39]} Bxf6 {[%emt 0:03:57]} 32. Nxe4 {[%emt 0:00:03]} Bxd4+ {[%emt 0:03:18]} 33. Kg2 {[%emt 0:00:05]} Be5 {[%emt 0:01:33]} 34. Rf7+ {[%emt 0:00:10]} Kc8 {[%emt 0:00:18]} 35. Re7 {[%emt 0:01:58]} Rh2+ {[%emt 0:07:52]} 36. Kf1 {[%emt 0:06:41]} Rh4 {[%emt 0:06:38]} 37. Nd6+ {[%emt 0:01:10]} Bxd6 {[%emt 0:00:49]} 38. cxd6 {[%emt 0:00:03]} Rd4 {[%emt 0:03:04]} 1/2-1/2